bitfinex/quotes_ETHUSD_20240701
["timestamp","ask_amount","ask_price","bid_price","bid_amount"]
[1719792601327,8.18698741,3438.3,3438.2,0.118951]
[1719792601625,7.78193476,3438.3,3438.2,0.118951]
[1719792602415,7.78193476,3438.3,3436.4,2.2568]
[1719792602416,2.73105476,3438.2,3436.4,2.2568]
[1719792602610,2.73105476,3438.2,3436.7,0.829]
[1719792602611,2.3187,3437.6,3436.7,0.829]
[1719792602804,0.55,3437.5,3436.7,0.829]
[1719792602999,3.55,3437.5,3436.8,0.07689806]
[1719792603199,0.66977,3437.4,3436.7,0.779]
[1719792603413,3.55,3437.5,3437.2,0.829]
[1719792603589,0.40505265,3437.7,3437.4,0.829]
[1719792603590,3.0,3437.7,3437.4,0.829]
[1719792603794,3.0,3437.7,3437.0,2.312]
[1719792605223,3.0,3437.7,3437.3,1.994]
[1719792605789,7.32,3437.8,3437.3,1.994]
[1719792605995,1.994,3439.5,3437.1,0.05818437]
[1719792605996,7.32,3438.3,3437.7,1.994]
[1719792606301,7.32,3438.3,3438.1,1.994]
[1719792606623,12.47,3438.8,3438.2,0.07610678]
[1719792607189,7.32,3438.9,3437.6,0.05817327]
[1719792607190,7.32,3438.9,3438.1,1.994]
[1719792607594,7.32,3438.9,3438.2,0.07607848]
[1719792607849,3.0,3438.8,3438.1,1.994]
[1719792608212,3.0,3438.8,3438.2,0.07607848]
[1719792609591,3.0,3438.8,3438.1,1.994]
[1719792609793,3.0,3438.8,3438.2,0.07349789]
[1719792609995,3.0,3438.8,3438.1,1.994]
[1719792610645,3.0,3438.8,3438.2,0.07349789]
[1719792611440,3.0,3438.8,3438.1,1.994]
[1719792612046,3.0,3438.8,3438.2,0.07349789]
[1719792612402,3.0,3438.8,3438.1,1.994]
[1719792612605,3.0,3438.8,3438.2,0.07349789]
[1719792613022,3.0,3438.8,3438.3,2.4096]
[1719792613344,7.32,3439.2,3438.5,1.994]
[1719792613596,19.79,3439.5,3438.5,1.994]
[1719792613767,19.79,3439.5,3438.9,1.994]
[1719792614660,19.79,3439.5,3439.0,0.07295281]
[1719792615002,19.79,3439.5,3439.3,1.994]
[1719792615205,7.32,3440.1,3439.3,1.994]
[1719792615457,9.28673819,3440.1,3439.3,1.994]
[1719792616410,3.0,3440.0,3439.3,1.994]
[1719792618753,3.0,3440.0,3438.9,1.994]
[1719792619549,3.0,3440.0,3438.7,2.2913]
[1719792619982,3.0,3440.0,3438.8,0.07304488]
[1719792620279,1.22867382,3439.9,3438.8,0.07304488]
[1719792620693,2.4418,3439.8,3438.8,0.07304488]
[1719792620874,0.55,3439.7,3438.8,0.07304488]
[1719792621050,0.55,3439.7,3437.9,1.994]
[1719792621450,3.55,3439.7,3438.0,0.07355764]
[1719792621747,3.55,3439.7,3438.0,0.5094434]
[1719792621748,0.76405125,3439.6,3438.0,0.5094434]
[1719792621971,0.55,3439.5,3438.0,0.5094434]
[1719792622371,0.55,3439.5,3438.3,1.994]
[1719792622884,0.55,3439.5,3438.4,0.07330918]
[1719792626356,0.55,3439.5,3437.9,1.994]
[1719792626564,0.43140513,3439.4,3438.0,0.07358154]
[1719792627860,2.3118,3439.3,3438.0,0.07358154]
[1719792628188,5.3118,3439.3,3438.0,0.07358154]
[1719792628981,5.3118,3439.3,3437.9,2.42253]
[1719792639576,5.3118,3439.3,3437.9,1.994]
[1719792639577,2.4622,3439.2,3437.9,1.994]
[1719792639896,2.4622,3439.2,3438.0,0.10358612]
[1719792640062,3.0,3439.2,3438.0,0.10358612]
[1719792640267,2.366,3439.0,3438.0,0.10358612]
[1719792640466,5.366,3439.0,3438.0,0.10358612]
[1719792640775,5.366,3439.0,3437.9,1.994]
[1719792641006,3.0,3438.9,3437.9,1.994]
[1719792641168,2.366,3439.0,3438.0,0.10358612]
[1719792641497,2.4558,3438.8,3437.5,1.994]
[1719792641892,5.4558,3438.8,3437.6,0.10385953]
[1719792642508,5.4558,3438.8,3437.9,1.994]
[1719792643171,5.4558,3438.8,3438.0,0.10362148]
[1719792643367,0.67244,3438.7,3438.0,0.10362148]
[1719792643617,3.67244,3438.7,3438.0,0.10362148]
[1719792646598,3.0,3438.7,3438.0,0.10362148]
[1719792646777,5.4558,3438.8,3438.0,0.10362148]
[1719792647816,5.4558,3438.8,3437.6,1.994]
[1719792648020,5.4558,3438.8,3437.7,0.10382653]
[1719792648175,0.55,3438.7,3437.7,0.10382653]
[1719792648374,0.72744,3438.6,3437.7,0.10382653]
[1719792648816,2.3657,3438.5,3437.7,0.10382653]
[1719792650500,2.3206,3438.3,3437.7,0.10382653]
[1719792650677,2.3206,3438.3,3436.6,4.4288]
[1719792651008,2.3206,3438.1,3436.7,0.10453023]
[1719792651219,0.62906387,3438.0,3436.7,0.10453023]
[1719792651378,2.3206,3438.1,3436.7,0.10453023]
[1719792652323,2.3206,3438.1,3436.9,1.994]
[1719792652682,2.3206,3438.1,3437.0,0.10435889]
[1719792653232,2.3206,3438.1,3437.3,1.994]
[1719792654018,2.3206,3438.1,3437.4,0.10204328]
[1719792654227,3.63966,3438.1,3437.4,0.10204328]
[1719792655162,3.0,3438.3,3437.4,0.10204328]
[1719792655466,3.0,3438.3,3437.3,1.994]
[1719792656419,3.0,3438.3,3437.3,2.05218206]
[1719792656627,3.0,3438.3,3437.4,0.10204328]
[1719792656828,3.0,3438.3,3437.7,1.994]
[1719792658419,3.0,3438.3,3437.8,2.493]
[1719792658617,3.0,3438.3,3437.8,2.9417]
[1719792659135,7.32,3438.4,3437.8,2.9417]
[1719792660023,7.32,3438.4,3437.7,1.994]
[1719792660425,7.32,3438.4,3437.3,2.486]
[1719792660767,7.32,3438.4,3437.5,1.994]
[1719792661071,7.32,3438.4,3437.6,0.10188663]
[1719792661426,7.32,3438.4,3437.5,1.994]
[1719792661668,0.732,3438.3,3437.5,1.994]
[1719792661956,0.732,3438.3,3436.4,2.486]
[1719792661957,2.2771,3438.2,3436.4,2.486]
[1719792662130,2.2771,3438.2,3437.0,1.994]
[1719792662333,2.2771,3438.2,3437.0,4.48]
[1719792662550,1.03291,3438.1,3437.1,0.09916628]
[1719792663047,4.03291,3438.1,3437.1,0.09916628]
[1719792663568,2.2771,3438.0,3437.1,0.09916628]
[1719792663723,5.8271,3438.0,3437.1,0.09916628]
[1719792663923,5.8271,3438.0,3436.6,1.994]
[1719792664233,0.73088328,3437.9,3436.6,1.994]
[1719792664422,0.55,3437.8,3436.7,0.09943537]
[1719792665053,3.73088328,3437.9,3436.7,0.09943537]
[1719792666225,4.17970605,3437.9,3436.7,0.09943537]
[1719792666760,2.2771,3437.8,3436.7,0.09943537]
[1719792666959,0.64568061,3437.7,3436.7,0.09943537]
[1719792667258,0.64568061,3437.7,3436.8,0.09936697]
[1719792667464,3.64568061,3437.7,3436.8,0.09936697]
[1719792667773,3.64568061,3437.7,3436.1,2.486]
[1719792667774,2.2771,3437.6,3436.1,2.486]
[1719792667944,2.2771,3437.6,3436.9,0.09929858]
[1719792667945,0.55,3437.5,3436.9,0.09929858]
[1719792668258,1.87427806,3437.5,3436.5,1.994]
[1719792668711,1.87427806,3437.5,3436.6,0.09950376]
[1719792669394,4.87427806,3437.5,3436.6,0.09950376]
[1719792671283,4.87427806,3437.5,3436.5,1.994]
[1719792671482,0.77970587,3437.4,3436.5,1.994]
[1719792671689,3.77970587,3437.4,3436.5,1.994]
[1719792671889,3.77970587,3437.4,3436.6,0.09950376]
[1719792673671,3.77970587,3437.4,3436.1,2.486]
[1719792673873,2.395,3437.3,3436.1,2.486]
[1719792674097,0.34388796,3437.2,3436.2,0.09958143]
[1719792676806,0.34388796,3437.2,3435.8,4.3112]
[1719792676989,0.34388796,3437.2,3436.3,0.09954589]
[1719792677325,0.34388796,3437.2,3436.4,0.09947748]
[1719792677674,0.34388796,3437.2,3435.8,2.3172]
[1719792677876,0.34388796,3437.2,3435.9,0.23172]
[1719792678101,0.34388796,3437.2,3435.9,0.33153957]
[1719792678473,2.395,3437.1,3435.9,0.33153957]
[1719792681200,2.395,3437.1,3436.0,0.05819746]
[1719792681710,2.395,3437.1,3436.1,0.09968272]
[1719792681910,2.395,3437.1,3436.2,0.05819745]
[1719792682310,2.395,3437.1,3436.3,0.09954589]
[1719792682929,3.77970587,3437.4,3436.4,2.3172]
[1719792682930,5.395,3437.4,3436.4,2.3172]
[1719792683308,5.395,3437.4,3436.5,0.09940907]
[1719792683814,5.395,3437.4,3436.5,0.34106998]
[1719792684314,3.0,3437.4,3436.6,0.05819013]
[1719792684676,3.0,3437.4,3436.7,0.0993166]
[1719792686144,3.0,3437.4,3436.8,0.0581901]
[1719792686352,3.0,3437.4,3436.7,0.1575067]
[1719792686640,7.32,3437.5,3436.9,0.09916985]
[1719792686826,7.32,3437.5,3436.8,0.09923824]
[1719792686997,7.32,3437.5,3437.0,0.09910146]
[1719792687199,7.32,3437.5,3436.9,0.09916985]
[1719792687425,7.32,3437.5,3437.1,0.09903308]
[1719792687731,7.32,3437.5,3437.2,0.0989647]
[1719792688105,7.32,3437.5,3436.7,0.52922686]
[1719792688502,7.32,3437.5,3436.8,0.09923824]
[1719792689451,2.2556,3437.7,3436.8,0.09923824]
[1719792689727,2.2556,3437.7,3436.5,0.24166091]
[1719792689728,1.25756,3437.6,3436.5,0.24166091]
[1719792689907,4.25756,3437.6,3436.5,0.24166091]
[1719792690107,4.25756,3437.6,3436.6,0.09937503]
[1719792690338,2.395,3437.5,3436.6,0.09937503]
[1719792690640,0.665256,3437.4,3436.6,0.09937503]
[1719792690792,0.665256,3437.4,3436.1,2.58448002]
[1719792691432,0.665256,3437.4,3436.2,0.09962924]
[1719792691628,0.665256,3437.4,3436.3,0.05819325]
[1719792692011,0.665256,3437.4,3436.4,0.09949241]
[1719792692935,0.665256,3437.4,3436.2,0.05819323]
[1719792693138,0.665256,3437.4,3436.5,0.09942401]
[1719792693352,0.665256,3437.4,3436.4,0.05819322]
[1719792693662,0.665256,3437.4,3436.5,0.09942401]
[1719792694556,1.13863928,3437.4,3436.5,0.09942401]
[1719792694726,1.13863928,3437.4,3436.1,2.3138]
[1719792694925,1.13863928,3437.4,3436.6,0.0993556]
[1719792695120,1.13863928,3437.4,3436.1,2.3138]
[1719792695321,1.13863928,3437.4,3436.7,0.0992872]
[1719792695546,1.13863928,3437.4,3436.1,2.3138]
[1719792695745,5.395,3437.5,3436.2,0.05819822]
[1719792695956,5.395,3437.5,3436.2,0.15782746]
[1719792696127,5.395,3437.5,3436.3,0.05819405]
[1719792696448,5.395,3437.5,3436.4,0.09949241]
[1719792696650,5.395,3437.5,3436.5,2.32799349]
[1719792696866,5.395,3437.5,3436.6,0.34211019]
[1719792697034,2.395,3437.5,3436.6,0.34211019]
[1719792697230,3.0,3437.7,3436.6,0.34211019]
[1719792697415,5.2658,3437.7,3436.7,0.05818856]
[1719792697845,5.2658,3437.7,3436.8,0.09922481]
[1719792698028,1.30591833,3437.6,3436.5,2.2698]
[1719792698430,1.30591833,3437.6,3436.6,0.09935712]
[1719792701453,5.2658,3437.7,3436.6,0.09935712]
[1719792703261,2.3097,3437.6,3436.6,0.09935712]
[1719792703563,2.3097,3437.6,3436.1,2.4644]
[1719792703564,1.02338328,3437.5,3436.1,2.4644]
[1719792703777,1.02338328,3437.5,3436.7,0.09928623]
[1719792704063,0.63330833,3437.4,3436.6,2.4644]
[1719792705970,0.63330833,3437.4,3435.9,2.4805]
[1719792706352,0.63330833,3437.4,3436.0,0.09976511]
[1719792708490,0.21000621,3437.3,3436.0,0.09976511]
[1719792708639,0.63330833,3437.4,3436.0,0.09976511]
[1719792708847,0.64930083,3437.3,3436.0,0.88631035]
[1719792709547,2.4454,3437.2,3436.0,0.88631035]
[1719792709949,2.4454,3437.2,3436.6,0.831]
[1719792710169,2.4454,3437.2,3436.4,0.831]
[1719792710378,2.4454,3437.2,3436.7,0.0992932]
[1719792710581,0.62764,3437.1,3436.4,0.831]
[1719792710988,0.62764,3437.1,3436.5,0.09943]
[1719792715361,0.62764,3437.1,3436.2,0.831]
[1719792715575,0.62764,3437.1,3436.6,0.09936159]
[1719792715779,0.390404,3437.0,3436.2,0.831]
[1719792715974,0.390404,3437.0,3436.7,0.0992932]
[1719792716181,0.390404,3437.0,3436.2,0.831]
[1719792716508,0.390404,3437.0,3436.3,0.09956682]
[1719792719791,0.4294444,3436.9,3436.3,0.09956682]
[1719792719969,0.62764,3437.1,3436.3,0.09956682]
[1719792720993,0.62764,3437.1,3436.4,0.831]
[1719792721359,0.62764,3437.1,3436.5,0.09943746]
[1719792721798,2.4454,3437.2,3436.6,0.831]
[1719792722164,2.4454,3437.2,3436.7,0.09930066]
[1719792722596,3.0,3437.4,3436.7,0.09930066]
[1719792722759,3.0,3437.4,3436.9,0.831]
[1719792722962,3.0,3437.4,3437.2,0.831]
[1719792723188,3.0,3437.4,3437.0,0.93010944]
[1719792723389,2.3221,3437.5,3437.3,0.0989043]
[1719792723606,2.3221,3437.5,3437.0,0.831]
[1719792724663,7.55221,3438.4,3437.7,0.831]
[1719792725794,7.32,3438.4,3437.5,0.05817771]
[1719792726019,7.32,3438.4,3437.8,0.09854604]
[1719792726162,7.32,3438.4,3437.4,4.2486]
[1719792726360,7.32,3438.4,3437.9,0.09845279]
[1719792726561,7.32,3438.4,3437.4,4.2486]
[1719792726780,7.32,3438.4,3438.0,0.09838444]
[1719792726981,7.32,3438.4,3437.5,0.42486]
[1719792727168,7.32,3438.4,3438.1,0.0983161]
[1719792727393,7.32,3438.4,3437.5,0.42486]
[1719792727620,7.32,3438.4,3438.2,0.09824776]
[1719792727826,7.32,3438.4,3437.5,0.42486]
[1719792728128,7.32,3438.4,3437.6,0.467346]
[1719792728325,7.32,3438.4,3437.6,0.56600385]
[1719792728601,7.32,3438.4,3437.7,0.05817227]
[1719792728904,7.32,3438.4,3437.7,0.15676176]
[1719792729074,7.32,3438.4,3437.8,0.05817225]
[1719792729506,7.32,3438.4,3437.9,0.09845279]
[1719792731170,7.32,3438.4,3438.0,0.2149625]
[1719792731369,7.32,3438.4,3438.0,0.31328271]
[1719792731791,2.491,3438.8,3438.0,0.31328271]
[1719792735068,10.32,3438.9,3438.1,0.05816778]
[1719792735302,10.32,3438.9,3438.2,0.09818352]
[1719792735505,10.32,3438.9,3438.2,0.3604649]
[1719792736301,10.32,3438.9,3438.3,0.05816356]
[1719792736504,7.32,3438.9,3438.3,0.05816356]
[1719792736799,7.32,3438.9,3438.4,0.09804686]
[1719792737202,12.47,3439.2,3438.3,0.05816356]
[1719792737369,3.0,3439.1,3438.5,0.09797853]
[1719792737571,3.0,3439.1,3438.3,0.05816356]
[1719792737984,3.0,3439.1,3438.4,0.09804686]
[1719792739790,3.0,3439.1,3438.5,2.3072]
[1719792739987,12.47,3439.2,3438.6,0.24634104]
[1719792740319,12.47,3439.2,3438.6,0.09791021]
[1719792740809,12.47,3439.2,3438.3,0.05816356]
[1719792741179,12.47,3439.2,3438.4,0.09804686]
[1719792741379,12.47,3439.2,3438.3,0.05816356]
[1719792741807,12.47,3439.2,3438.4,0.09804686]
[1719792742016,12.47,3439.2,3438.3,0.05816356]
[1719792742228,12.47,3439.2,3438.5,0.09797853]
[1719792742447,12.47,3439.2,3438.4,0.56997135]
[1719792742621,12.47,3439.2,3438.6,0.09791021]
[1719792742798,12.47,3439.2,3438.4,0.47192449]
[1719792743007,7.32,3439.3,3438.7,0.09784189]
[1719792743222,3.0,3439.2,3438.4,0.47192449]
[1719792743407,2.3001,3439.4,3438.8,0.09777357]
[1719792743773,2.3001,3439.4,3438.9,0.09770526]
[1719792744091,2.3001,3439.4,3438.3,0.05816356]
[1719792744491,2.3001,3439.4,3438.4,0.09804686]
[1719792744795,2.3001,3439.4,3438.5,0.05816051]
[1719792745113,2.3001,3439.4,3438.5,0.15613904]
[1719792745310,2.3001,3439.4,3438.5,0.09797853]
[1719792745517,3.56211,3439.4,3438.5,0.09797853]
[1719792745732,3.0,3439.3,3438.2,2.66808138]
[1719792745931,3.0,3439.3,3438.6,0.83]
[1719792746108,2.3001,3439.4,3438.6,0.83]
[1719792747711,2.3001,3439.4,3438.8,0.83]
[1719792748618,2.3001,3439.4,3438.6,0.83]
[1719792752043,2.3001,3439.4,3438.2,2.66808138]
[1719792752248,2.3001,3439.4,3438.6,0.83]
[1719792752928,3.1301,3439.4,3438.6,0.83]
[1719792753254,3.0,3439.3,3438.6,0.83]
[1719792753825,2.3001,3439.4,3438.6,0.83]
[1719792758564,3.0,3439.5,3438.6,3.1675]
[1719792758728,3.0,3439.6,3438.7,0.31675]
[1719792759745,3.0,3439.6,3438.6,3.1675]
[1719792760342,0.83,3439.5,3438.6,3.1675]
[1719792761556,3.0,3439.6,3438.6,3.1675]
[1719792761831,0.83,3439.5,3438.6,3.1675]
[1719792767863,3.0,3439.6,3438.6,3.1675]
[1719792768038,2.51182,3439.5,3438.6,3.1675]
[1719792768438,3.0,3439.4,3438.6,3.1675]
[1719792768975,3.0,3439.6,3438.6,3.1675]
[1719792771577,3.0,3439.6,3438.7,2.40156322]
[1719792771763,0.41996553,3439.5,3438.7,2.40156322]
[1719792771970,0.20998114,3439.5,3438.8,0.32315632]
[1719792772338,0.20998114,3439.5,3439.0,0.83]
[1719792772844,0.20998114,3439.5,3439.2,0.83]
[1719792773571,0.20998114,3439.5,3439.1,2.3038]
[1719792776399,0.20998114,3439.5,3439.2,0.09741718]
[1719792776989,3.0,3439.6,3439.2,0.09741718]
[1719792781863,3.0,3439.6,3439.2,0.3375389]
[1719792782092,3.83,3440.0,3439.2,0.3375389]
[1719792782267,0.2100519,3439.9,3439.2,0.3375389]
[1719792782473,0.2100519,3439.9,3439.2,0.24012172]
[1719792783423,0.21005947,3439.8,3439.2,0.24012172]
[1719792783708,0.21005947,3439.7,3439.2,0.24012172]
[1719792783858,3.83,3440.0,3439.2,0.24012172]
[1719792784060,0.21006053,3439.9,3439.2,0.24012172]
[1719792785276,0.21006053,3439.9,3439.3,2.52349217]
[1719792785700,0.21006053,3439.9,3439.3,3.41164072]
[1719792785884,0.21006053,3439.9,3439.3,3.35349217]
[1719792786074,0.21006053,3439.9,3439.3,2.52349217]
[1719792787015,3.0,3440.0,3439.3,2.52349217]
[1719792787175,3.0,3440.0,3439.4,0.36517598]
[1719792790415,3.0,3440.0,3439.5,2.2691]
[1719792790711,3.0,3440.0,3439.5,2.32724372]
[1719792791079,3.0,3440.0,3439.6,0.09711117]
[1719792791283,3.0,3440.0,3439.5,2.2691]
[1719792793905,12.616,3440.3,3439.5,2.2691]
[1719792793906,3.0,3439.9,3439.5,2.2691]
[1719792794108,3.0,3440.2,3439.6,0.30991]
[1719792794343,3.0,3440.2,3439.5,2.2691]
[1719792798029,13.446,3440.3,3440.0,0.83]
[1719792798030,12.616,3440.3,3440.0,0.83]
[1719792798218,12.616,3440.3,3438.6,0.28774494]
[1719792798219,0.146,3440.3,3439.6,0.83]
[1719792798420,0.146,3440.3,3439.7,2.4672]
[1719792798625,0.83,3440.2,3439.7,0.09702896]
[1719792798883,0.83,3440.0,3439.1,3.2972]
[1719792799048,0.83,3440.0,3439.8,0.09694675]
[1719792799261,0.83,3440.0,3439.1,2.4672]
[1719792799558,0.83,3440.0,3439.9,0.09687301]
[1719792799762,3.83,3440.0,3439.1,2.4672]
[1719792799924,0.83,3439.5,3439.1,2.4672]
[1719792800244,0.83,3439.5,3439.2,0.09735995]
[1719792800434,0.83,3439.5,3438.6,0.83]
[1719792800621,0.83,3439.5,3439.3,0.09729165]
[1719792800955,3.0,3439.6,3438.6,0.83]
[1719792801155,3.3227,3439.7,3438.7,0.32991]
[1719792801320,3.0,3439.6,3438.7,0.42761149]
[1719792801656,0.83,3439.5,3438.7,0.42761149]
[1719792803125,3.0,3439.6,3438.7,0.42761149]
[1719792804160,3.0,3439.6,3438.8,3.38205318]
[1719792804376,3.0,3439.6,3438.9,0.38096647]
[1719792804686,3.2953,3439.9,3438.9,0.47853133]
[1719792804951,3.0,3439.8,3438.9,0.47853133]
[1719792805181,3.0,3439.8,3438.9,0.09756486]
[1719792805823,3.0,3439.8,3438.8,3.3239]
[1719792806775,3.0,3439.8,3439.0,0.83]
[1719792807330,0.83,3439.7,3438.8,3.3239]
[1719792807566,0.62953,3439.6,3438.8,3.3239]
[1719792807728,0.62953,3439.6,3438.9,0.09756486]
[1719792810863,3.0,3439.8,3438.9,0.09756486]
[1719792811048,3.0,3439.8,3439.6,80.0]
[1719792811585,3.0,3439.8,3439.7,0.09701851]
[1719792811885,3.21012724,3439.8,3439.7,0.09701851]
[1719792812051,3.21013357,3439.8,3439.7,0.09701851]
[1719792814778,3.21015582,3439.8,3439.7,0.09701851]
[1719792818050,3.21015753,3439.8,3439.7,0.09701851]
[1719792821080,3.0,3439.8,3439.7,0.09701851]
[1719792821295,3.21014271,3439.8,3439.7,0.09701851]
[1719792824289,3.0,3439.8,3439.7,0.09701851]
[1719792824498,3.21013316,3439.8,3439.7,0.09701851]
[1719792824897,3.21013236,3439.8,3439.7,0.09701851]
[1719792827507,3.0,3439.8,3439.7,0.09701851]
[1719792827707,3.21012527,3439.8,3439.7,0.09701851]
[1719792828918,4.4106678,3439.8,3439.7,0.09701851]
[1719792829217,9.1861678,3439.8,3439.7,0.09701851]
[1719792829720,6.8806678,3439.8,3439.7,0.08626942]
[1719792829916,6.8806678,3439.8,3439.6,78.57074555]
[1719792829917,2.639281,3439.7,3439.6,78.57074555]
[1719792830130,42.69040927,3439.7,3439.6,78.57074555]
[1719792830304,36.40748212,3439.7,3439.6,78.57074555]
[1719792830473,36.37663237,3439.7,3439.6,78.57074555]
[1719792830675,37.51029533,3439.7,3439.6,78.57074555]
[1719792831629,37.88221606,3439.7,3439.6,76.07074555]
[1719792833928,37.88215869,3439.7,3439.6,76.07074555]
[1719792836419,38.63215869,3439.7,3439.6,76.07074555]
[1719792836629,39.38215869,3439.7,3439.6,66.88674555]
[1719792836834,37.80213165,3439.7,3439.6,66.88674555]
[1719792836972,37.88213165,3439.7,3439.6,66.88674555]
[1719792837174,36.28113293,3439.7,3439.6,66.88674555]
[1719792837386,37.88208601,3439.7,3439.6,66.96744868]
[1719792837597,37.88213338,3439.7,3439.6,66.96744868]
[1719792838294,61.98462438,3439.7,3439.6,66.96744868]
[1719792840310,31.61260737,3439.7,3439.6,66.96744868]
[1719792840636,23.38966289,3439.7,3439.6,66.96744868]
[1719792845769,23.38963598,3439.7,3439.6,66.96744868]
[1719792846464,4.34385513,3439.7,3439.6,66.96744868]
[1719792846672,7.32,3439.8,3439.6,66.96744868]
[1719792846820,0.83,3439.7,3439.6,66.96744868]
[1719792847647,7.62383848,3439.8,3439.6,66.96744868]
[1719792847853,0.55,3439.7,3439.6,66.96744868]
[1719792848049,3.55,3439.7,3439.6,66.96744868]
[1719792853159,3.0,3439.7,3439.6,66.96744868]
[1719792855123,3.0,3439.7,3439.6,67.79744868]
[1719792855307,8.296,3440.3,3439.6,69.34614868]
[1719792855611,0.83,3440.1,3439.6,69.34614868]
[1719792858725,0.55,3440.0,3439.6,69.34614868]
[1719792861292,0.83,3439.9,3439.6,69.34614868]
[1719792864228,0.55,3440.0,3439.6,69.34614868]
[1719792866143,3.0,3440.2,3439.6,69.34614868]
[1719792866449,3.0,3440.2,3439.9,2.3698]
[1719792866803,0.146,3440.3,3440.0,0.08037193]
[1719792875569,0.146,3440.3,3440.1,2.3026]
[1719792875775,0.146,3440.3,3440.1,2.38287584]
[1719792895913,0.146,3440.3,3440.2,0.83]
[1719792896115,0.146,3440.3,3440.2,3.122]
[1719792896315,0.146,3440.3,3440.2,3.20215875]
[1719792899343,0.146,3440.3,3440.2,2.37215875]
[1719792904510,0.146,3440.3,3440.2,0.08015875]
[1719792904909,0.146,3440.3,3440.2,0.08013974]
[1719792905153,0.146,3440.3,3439.9,2.4711]
[1719792905325,0.146,3440.3,3440.0,0.08027919]
[1719792907717,0.146,3440.3,3440.0,0.91027919]
[1719792907929,0.146,3440.3,3440.0,1.24841711]
[1719792909017,0.146,3440.3,3440.2,3.3291]
[1719792909430,0.146,3440.3,3440.2,3.40924267]
[1719792909758,0.146,3440.3,3440.2,3.39474267]
[1719792915740,0.146,3440.3,3440.2,2.56474267]
[1719792915954,0.146,3440.3,3440.2,0.08014267]
[1719792916164,0.146,3440.3,3439.8,0.83]
[1719792916536,0.146,3440.3,3439.9,0.0803177]
[1719792917163,0.146,3440.3,3440.0,0.83]
[1719792917472,0.146,3440.3,3440.1,0.08018117]
[1719792921647,0.146,3440.3,3440.2,0.83]
[1719792922058,0.146,3440.3,3440.2,0.91011291]
[1719792922256,0.146,3440.3,3440.2,0.08011291]
[1719792922458,3.93269,3440.3,3440.2,0.08011291]
[1719792922668,2.4019,3440.2,3439.6,66.88674555]
[1719792922990,0.83,3439.9,3439.6,66.88674555]
[1719792923342,0.83,3440.1,3439.6,66.88674555]
[1719792924362,5.4019,3440.2,3439.6,66.88674555]
[1719792926090,3.0,3440.2,3439.6,66.88674555]
[1719792926301,0.146,3440.3,3439.6,66.88674555]
[1719792926458,0.78625,3440.3,3439.6,66.88674555]
[1719792926876,0.146,3440.3,3439.8,0.83]
[1719792927071,0.146,3440.3,3440.0,0.83]
[1719792927274,0.146,3440.3,3440.2,0.83]
[1719792927513,0.146,3440.3,3440.0,0.83]
[1719792927662,0.146,3440.3,3439.8,0.83]
[1719792928280,0.146,3440.3,3439.6,67.71674555]
[1719792929676,0.146,3440.3,3439.8,0.83]
[1719792930708,0.146,3440.3,3440.0,0.83]
[1719792932113,0.146,3440.3,3440.1,0.07758581]
[1719792932606,0.146,3440.3,3439.8,0.83]
[1719792932808,0.146,3440.3,3439.9,0.07773578]
[1719792935582,2.3215,3440.2,3439.9,0.07773578]
[1719792935791,2.3215,3440.2,3439.6,66.88674555]
[1719792936215,2.3215,3440.2,3439.7,0.07786512]
[1719792936779,3.1515,3440.2,3439.7,0.07786512]
[1719792936995,3.62975,3440.1,3439.7,0.07786512]
[1719792944334,0.83,3440.0,3439.7,0.07786512]
[1719792952433,0.83,3439.8,3439.7,0.07786512]
[1719792952617,3.2264,3439.8,3439.7,0.07786512]
[1719792952822,6.2264,3439.8,3439.7,0.07786512]
[1719792953240,5.3964,3439.8,3439.7,0.07786512]
[1719792953772,3.0,3439.8,3439.7,0.07786512]
[1719792954062,5.3603,3440.2,3439.7,0.07786512]
[1719792954353,5.99393,3440.2,3439.7,0.07786512]
[1719792955471,3.0,3440.2,3439.7,0.07786512]
[1719792955768,0.146,3440.3,3439.7,0.90786512]
[1719792956342,0.146,3440.3,3439.7,0.07786512]
[1719792960151,0.976,3440.3,3439.7,0.07786512]
[1719792960853,0.83,3440.1,3439.7,0.07786512]
[1719792961049,0.83,3439.9,3439.7,0.07786512]
[1719792961863,3.83,3440.1,3439.7,0.07786512]
[1719792965700,3.0,3440.1,3439.7,0.07786512]
[1719792965862,0.146,3440.3,3439.7,2.53686512]
[1719792969893,0.146,3440.3,3439.7,3.36686512]
[1719792970625,0.146,3440.3,3440.0,0.83]
[1719792970988,0.146,3440.3,3440.1,0.07255488]
[1719792972280,0.146,3440.3,3439.7,3.289]
[1719792972529,0.146,3440.3,3439.8,0.07275306]
[1719792972890,0.146,3440.3,3439.7,3.289]
[1719792973091,0.146,3440.3,3439.9,0.07268479]
[1719792973315,0.146,3440.3,3439.8,0.07275306]
[1719792973527,0.146,3440.3,3440.0,0.07261652]
[1719792973719,0.146,3440.3,3439.9,0.07268479]
[1719792973924,0.146,3440.3,3440.1,0.07254826]
[1719792974223,0.146,3440.3,3440.0,0.07261652]
[1719792974423,0.146,3440.3,3440.1,0.07254826]
[1719792974639,0.146,3440.3,3439.7,2.459]
[1719792974944,0.146,3440.3,3439.8,0.07275306]
[1719792975446,0.146,3440.3,3439.9,0.07268479]
[1719792975662,0.146,3440.3,3439.7,2.459]
[1719792975663,0.83,3440.2,3439.6,66.88674555]
[1719792975998,3.83,3440.2,3439.7,0.07280147]